bitfinex-derivatives/quotes_ETHF0:USTF0_20250701
["timestamp","ask_amount","ask_price","bid_price","bid_amount"]
[1751339326257,0.80394,2487.1,2487.0,1.27]
[1751339326655,1.46524,2487.1,2487.0,1.27]
[1751339326855,2.83804,2487.1,2487.0,1.27]
[1751339327962,2.83804,2487.1,2487.0,2.07398]
[1751339328463,2.83804,2487.1,2487.0,1.27]
[1751339329161,29.6609,2487.1,2486.6,0.6633]
[1751339329365,29.6609,2487.1,2486.6,0.01]
[1751339329366,0.80407,2486.7,2486.6,0.01]
[1751339329862,2.79947,2486.7,2486.6,0.01]
[1751339330462,0.80414,2486.5,2486.4,4.67217]
[1751339330762,0.80414,2486.5,2486.4,4.68217]
[1751339331556,0.80414,2486.5,2486.4,0.6702]
[1751339333163,0.80414,2486.5,2486.4,0.01]
[1751339333360,7.27760299,2486.5,2486.2,1.19987782]
[1751339333563,3.08180299,2486.3,2486.2,1.19987782]
[1751339333764,0.80424,2486.2,2486.1,1.19987782]
[1751339333953,1.47964,2486.2,2486.1,1.23987782]
[1751339334159,1.47964,2486.2,2486.1,1.19987782]
[1751339335265,0.80427,2486.1,2486.0,5.21197782]
[1751339335467,0.80427,2486.1,2486.0,5.2821]
[1751339335660,0.80427,2486.1,2486.0,4.0121]
[1751339335854,0.80427,2486.1,2486.0,3.2078]
[1751339336060,0.8043,2486.0,2485.9,1.19987782]
[1751339336367,0.80432,2486.0,2485.9,2.07432]
[1751339337068,0.80435,2485.9,2485.8,0.80434]
[1751339337255,0.80435,2485.9,2485.8,2.07434]
[1751339342270,0.80431,2486.1,2486.0,0.80427]
[1751339342466,0.80431,2486.1,2486.0,2.07427]
[1751339344571,0.80431,2486.1,2486.0,1.27]
[1751339344968,0.80422,2486.3,2486.0,4.4778]
[1751339345263,3.2078,2486.6,2486.1,2.27760299]
[1751339345469,0.80417,2486.5,2486.4,0.80415]
[1751339346070,0.80417,2486.4,2486.3,0.80417]
[1751339346564,0.80424,2486.2,2486.1,1.48853]
[1751339346765,0.80424,2486.2,2486.1,2.75853]
[1751339348871,0.80424,2486.2,2486.1,1.48853]
[1751339349068,0.80423,2486.3,2486.2,0.8042]
[1751339349268,0.80423,2486.3,2486.2,2.0742]
[1751339349873,0.80423,2486.3,2486.2,0.8042]
[1751339350770,0.80424,2486.2,2486.1,1.48854]
[1751339350967,0.8043,2486.1,2486.0,0.80428]
[1751339351173,0.8043,2486.1,2486.0,0.84428]
[1751339351673,0.8043,2486.1,2486.0,0.80428]
[1751339352571,4.01205,2486.2,2486.1,0.80427]
[1751339352873,3.2078,2486.2,2486.1,2.07427]
[1751339353173,0.80421,2486.3,2486.2,0.80424]
[1751339353362,0.80421,2486.3,2486.2,2.07424]
[1751339353672,0.80421,2486.3,2486.2,0.80424]
[1751339354773,0.80421,2486.4,2486.3,0.80418]
[1751339356779,0.80424,2486.3,2486.2,0.80421]
[1751339358481,0.80427,2486.2,2486.1,0.80424]
[1751339358684,0.8043,2486.1,2486.0,0.80428]
[1751339358877,0.80436,2485.9,2485.8,0.80433]
[1751339359075,0.80436,2485.9,2485.8,1.27]
[1751339359582,0.80436,2485.9,2485.8,2.07436]
[1751339359782,0.80436,2485.9,2485.8,1.27]
[1751339359984,0.80436,2485.9,2485.8,2.07436]
[1751339360684,0.80436,2485.9,2485.8,1.27]
[1751339360885,0.80436,2485.9,2485.8,2.07436]
[1751339364390,0.80433,2485.9,2485.8,1.27]
[1751339365092,0.80433,2485.9,2485.8,2.07436]
[1751339365388,0.80432,2486.0,2485.9,0.80429]
[1751339365692,0.8043,2486.1,2486.0,0.80427]
[1751339367588,3.2078,2486.6,2486.0,8.76612299]
[1751339367788,4.01193,2486.6,2486.5,0.80414]
[1751339367988,4.01193,2486.6,2486.5,2.07414]
[1751339368690,4.01193,2486.6,2486.5,0.80414]
[1751339369394,3.2078,2486.6,2486.3,2.27760299]
[1751339369586,0.8042,2486.4,2486.3,0.80418]
[1751339369789,0.8042,2486.4,2486.3,2.07418]
[1751339370393,0.80416,2486.5,2486.4,0.80417]
[1751339371593,0.80416,2486.5,2486.4,2.07417]
[1751339372197,0.80416,2486.5,2486.4,0.80417]
[1751339372692,0.80416,2486.5,2486.4,2.07417]
[1751339372891,0.80416,2486.5,2486.4,0.80417]
[1751339373093,0.80419,2486.4,2486.3,0.80417]
[1751339373296,0.80419,2486.4,2486.3,2.07417]
[1751339373495,0.80419,2486.4,2486.3,0.80417]
[1751339373690,3.2078,2486.6,2486.1,5.67586299]
[1751339373691,0.80424,2486.3,2486.2,0.80421]
[1751339373897,0.80424,2486.3,2486.2,2.07421]
[1751339374795,0.80424,2486.2,2486.1,2.19185]
[1751339374996,0.80424,2486.2,2486.1,3.46185]
[1751339375185,0.80424,2486.2,2486.1,2.6576]
[1751339375998,0.80424,2486.2,2486.1,1.3876]
[1751339378504,0.80424,2486.2,2486.1,1.4576]
[1751339380597,3.08184299,2486.2,2486.1,0.7068]
[1751339380802,0.80433,2485.9,2485.8,11.351]
[1751339381001,0.80433,2485.9,2485.8,13.3176]
[1751339381395,0.80433,2485.9,2485.8,1.9666]
[1751339381896,0.80433,2485.9,2485.6,1.19987782]
[1751339382102,0.8044,2485.7,2485.6,1.21]
[1751339382299,4.0122,2485.7,2485.6,1.21]
[1751339382494,0.80443,2485.6,2485.5,1.89647782]
[1751339382695,3.08203299,2485.6,2485.5,0.7066]
[1751339384106,2.27760299,2485.6,2485.3,1.19987782]
[1751339384305,0.80449,2485.4,2485.3,0.22]
[1751339386304,3.08209299,2485.4,2485.3,0.22]
[1751339386496,0.80456,2485.2,2485.1,3.8557]
[1751339386696,0.80456,2485.2,2485.1,4.3257]
[1751339389103,3.08216299,2485.2,2485.1,1.1179]
[1751339389403,3.08216299,2485.2,2485.1,0.47]
[1751339389601,4.38036299,2485.2,2485.1,0.47]
[1751339389801,0.80466,2484.9,2484.8,0.7179]
[1751339389998,0.80466,2484.9,2484.8,2.79259]
[1751339392102,0.80466,2484.9,2484.8,1.9879]
[1751339392308,0.80466,2484.9,2484.8,1.27]
[1751339392605,0.80475,2484.6,2484.5,0.6925]
[1751339392805,3.08235299,2484.6,2484.5,0.6925]
[1751339393001,0.80479,2484.5,2484.4,0.7093]
[1751339393202,4.01259,2484.5,2484.4,0.16]
[1751339393407,0.80485,2484.3,2484.2,0.91499216]
[1751339393611,0.80485,2484.3,2484.2,1.49499216]
[1751339393903,0.80485,2484.3,2484.2,0.79469216]
[1751339394103,2.13715,2484.3,2484.2,0.79469216]
[1751339394301,2.78675,2484.3,2484.2,0.21469216]
[1751339397508,2.78675,2484.3,2484.2,1.01957216]
[1751339398508,2.78675,2484.3,2484.2,0.21469216]
[1751339399109,27.22075,2484.3,2484.2,1.01957216]
[1751339401512,27.22275,2484.3,2484.2,1.01957216]
[1751339402908,27.22275,2484.3,2484.2,0.21469216]
[1751339404812,2.78675,2484.3,2484.2,0.21469216]
[1751339405014,27.22375,2484.3,2484.2,0.21469216]
[1751339405215,0.80511,2483.5,2483.4,0.6921]
[1751339405515,0.80517,2483.3,2483.2,3.2078]
[1751339405707,3.08277299,2483.3,2483.2,3.2078]
[1751339406216,1.4296,2483.4,2483.3,0.80517]
[1751339406414,2.23474,2483.4,2483.3,0.80517]
[1751339406617,1.4296,2483.4,2483.3,0.80517]
[1751339408321,24.44,2483.4,2483.3,0.80517]
[1751339408516,3.08266299,2483.7,2483.3,1.27]
[1751339408817,25.24508,2483.6,2483.5,0.80511]
[1751339410913,0.80508,2483.6,2483.5,0.80511]
[1751339411116,25.24708,2483.6,2483.5,0.80511]
[1751339411315,3.62330299,2483.7,2483.6,0.80508]
[1751339411515,3.2078,2483.8,2483.7,0.80504]
[1751339411719,28.45481,2483.8,2483.7,0.80504]
[1751339412322,27.6498,2483.8,2483.7,0.80504]
[1751339412724,28.45481,2483.8,2483.7,0.80504]
[1751339413017,27.6498,2483.8,2483.7,2.07504]
[1751339413217,27.6508,2483.8,2483.7,2.07504]
[1751339413520,27.6508,2483.8,2483.7,0.80504]
[1751339413719,27.6508,2483.8,2483.7,2.07504]
[1751339414519,27.6508,2483.8,2483.7,0.80504]
[1751339414917,27.6508,2483.8,2483.7,1.58504]
[1751339415117,27.6508,2483.8,2483.7,2.07504]
[1751339415923,3.2078,2483.8,2483.7,2.07504]
[1751339416123,27.6508,2483.8,2483.7,0.80504]
[1751339417925,27.6508,2483.8,2483.7,1.48394]
[1751339418327,28.45581,2483.8,2483.7,1.48394]
[1751339419233,28.45581,2483.8,2483.6,0.6624]
[1751339419234,31.94095299,2483.8,2483.2,3.2078]
[1751339419528,3.08274299,2483.5,2483.4,0.80511]
[1751339419729,24.443,2483.5,2483.4,0.80511]
[1751339419931,3.08267299,2483.7,2483.4,1.27]
[1751339420229,3.2078,2483.8,2483.7,0.80504]
[1751339420426,3.2078,2483.8,2483.7,2.07504]
[1751339420726,27.6508,2483.8,2483.7,2.07504]
[1751339420921,27.6508,2483.8,2483.7,3.49294]
[1751339422029,0.80499,2483.9,2483.8,0.80501]
[1751339422225,24.443,2483.9,2483.8,2.07501]
[1751339422432,25.24798,2483.9,2483.8,0.80501]
[1751339422825,25.24798,2483.9,2483.8,2.07501]
[1751339423025,25.24798,2483.9,2483.8,0.80501]
[1751339423226,25.24798,2483.9,2483.8,2.07501]
[1751339423629,25.24798,2483.9,2483.8,0.80501]
[1751339424133,25.24798,2483.9,2483.8,2.07501]
[1751339424322,25.24798,2483.9,2483.8,0.80501]
[1751339424528,0.80503,2483.8,2483.7,0.80503]
[1751339424935,0.80503,2483.8,2483.7,0.86503]
[1751339425236,0.80504,2483.7,2483.6,1.51376]
[1751339425434,0.80504,2483.7,2483.6,2.78376]
[1751339426127,4.01284,2483.7,2483.6,2.78376]
[1751339426529,27.6508,2483.7,2483.6,5.06136299]
[1751339426732,3.2078,2484.0,2483.7,0.80504]
[1751339427034,3.2078,2484.0,2483.9,0.80498]
[1751339427235,28.45575,2484.0,2483.9,0.80498]
[1751339427428,28.45575,2484.0,2483.9,2.07498]
[1751339427629,3.2078,2484.0,2483.9,2.07498]
[1751339427828,28.45575,2484.0,2483.9,0.80498]
[1751339428030,28.45575,2484.0,2483.9,2.07498]
[1751339428734,28.45575,2484.0,2483.9,0.80498]
[1751339428935,28.45575,2484.0,2483.9,2.07498]
[1751339429326,28.45575,2484.0,2483.9,0.80498]
[1751339429727,28.45575,2484.0,2483.9,2.07498]
[1751339430536,4.01275,2484.0,2483.9,2.07498]
[1751339430731,28.45575,2484.0,2483.9,2.07498]
[1751339431132,27.6508,2484.0,2483.9,2.07498]
[1751339431431,28.45575,2484.0,2483.9,2.07498]
[1751339431839,28.45575,2484.0,2483.9,0.80498]
[1751339432336,4.01275,2484.0,2483.9,2.07498]
[1751339432537,28.45575,2484.0,2483.9,2.07498]
[1751339433532,27.6508,2484.0,2483.7,1.391]
[1751339433733,0.80501,2483.9,2483.8,0.80499]
[1751339433932,0.80501,2483.9,2483.8,2.07499]
[1751339434134,0.80501,2483.9,2483.8,0.80499]
[1751339434328,0.80501,2483.9,2483.6,0.7087]
[1751339434535,4.01284,2483.7,2483.6,1.51375]
[1751339434731,0.80508,2483.6,2483.5,0.6701]
[1751339434933,0.80514,2483.4,2483.3,0.80515]
[1751339435134,25.24714,2483.4,2483.3,1.51515]
[1751339435638,24.442,2483.4,2483.3,0.80515]
[1751339436138,25.24714,2483.4,2483.3,0.80515]
[1751339436438,0.80517,2483.3,2483.2,2.21409]
[1751339436942,0.80517,2483.3,2483.2,3.48409]
[1751339437239,0.80517,2483.3,2483.2,2.21409]
[1751339437437,0.80517,2483.3,2483.2,3.48409]
[1751339437741,0.80517,2483.3,2483.2,4.68396782]
[1751339437939,0.80517,2483.3,2483.2,3.41396782]
[1751339438140,3.08277299,2483.3,2483.2,1.19987782]
[1751339438442,0.80521,2483.2,2483.1,1.19987782]
[1751339438642,2.14861,2483.2,2483.1,2.46987782]
[1751339438841,2.14861,2483.2,2483.1,1.27]
[1751339439335,2.14861,2483.2,2483.1,2.46987782]
[1751339439537,2.14861,2483.2,2483.1,2.00511782]
[1751339440131,0.6557,2483.3,2483.1,2.46987782]
[1751339440440,25.25021,2483.2,2483.1,1.19987782]
[1751339440642,0.80524,2483.1,2483.0,1.19987782]
[1751339440942,4.42624299,2483.1,2483.0,1.53987782]
[1751339441344,4.42624299,2483.1,2483.0,0.34]
[1751339442239,1.3434,2483.1,2483.0,1.14527]
[1751339442640,2.14864,2483.1,2483.0,1.14527]
[1751339442840,2.14864,2483.1,2483.0,0.34]
[1751339443547,2.14864,2483.1,2483.0,1.14527]
[1751339444243,2.14864,2483.1,2483.0,0.34]
[1751339446449,4.42624299,2483.1,2483.0,0.34]
[1751339446652,0.80534,2482.8,2482.7,2.16715]
[1751339446847,25.26334,2482.8,2482.7,2.30947]
[1751339447047,25.26334,2482.8,2482.7,0.81]
[1751339447551,27.33734,2482.8,2482.7,0.81]
[1751339448152,27.33734,2482.8,2482.7,1.61537]
[1751339448649,30.54514,2482.8,2482.7,1.61537]
[1751339448949,30.54514,2482.8,2482.7,0.81]
[1751339450251,32.82274299,2482.8,2482.7,0.81]
[1751339450457,2.01351,2482.6,2481.7,1.19987782]
[1751339450756,3.2078,2482.4,2482.2,0.80553]
[1751339450950,3.2078,2482.4,2482.1,2.27760299]
[1751339451156,24.558,2482.3,2482.2,0.80553]
[1751339451355,24.558,2482.3,2482.2,3.39703]
[1751339451756,0.80539,2482.7,2482.6,0.8054]
[1751339451952,14.5718,2482.8,2482.7,0.80537]
[1751339452154,39.1398,2482.8,2482.7,0.80537]
[1751339452360,3.2078,2482.8,2482.7,2.07537]
[1751339452755,27.7778,2482.8,2482.7,2.07537]
[1751339453154,27.7778,2482.8,2482.7,0.80537]
[1751339453355,28.58314,2482.8,2482.7,0.80537]
[1751339453759,27.7778,2482.8,2482.7,2.07537]
[1751339453959,27.7778,2482.8,2482.7,0.80537]
[1751339454258,0.80539,2482.7,2482.6,0.80538]
[1751339454454,0.80539,2482.7,2482.6,2.07538]
[1751339454654,0.80541,2482.6,2482.5,0.80541]
[1751339455056,0.80541,2482.6,2482.5,2.07541]
[1751339455348,0.80541,2482.6,2482.5,0.80541]
[1751339455548,0.80541,2482.6,2482.2,4.40463299]
[1751339455549,0.80543,2482.5,2482.4,0.80545]
[1751339455856,28.57723,2482.5,2482.4,0.81545]
[1751339456448,28.57723,2482.5,2482.4,0.01]
[1751339456655,29.99173,2482.5,2482.4,0.01]
[1751339456856,0.80547,2482.4,2482.3,0.80548]
[1751339457659,29.1863,2482.5,2482.4,0.80547]
[1751339457959,24.564,2482.5,2482.4,2.07547]
[1751339458160,2.13809,2482.7,2482.6,0.8054]
[1751339458355,26.70809,2482.7,2482.6,2.0754]
[1751339459154,3.2078,2482.8,2482.7,0.80537]
[1751339459353,28.58214,2482.8,2482.7,0.80537]
[1751339459756,28.58214,2482.8,2482.7,2.07537]
[1751339459955,27.7768,2482.8,2482.7,2.07537]
[1751339460156,27.7768,2482.8,2482.7,0.80537]
[1751339460357,28.58214,2482.8,2482.7,0.80537]
[1751339460857,28.58214,2482.8,2482.6,0.80538]
[1751339460858,0.80541,2482.7,2482.6,0.80538]
[1751339461055,0.80546,2482.5,2482.4,0.80544]
[1751339461263,0.8055,2482.4,2482.3,0.80549]
[1751339461761,0.8055,2482.4,2482.3,2.07549]
[1751339462761,0.8055,2482.4,2482.3,0.80549]
[1751339462964,0.8055,2482.3,2482.2,2.12701]
[1751339463657,0.8055,2482.3,2482.2,2.12703]
[1751339463852,0.80549,2482.4,2482.3,0.80547]
[1751339464265,0.8055,2482.3,2482.2,2.12701]
[1751339464467,0.8055,2482.3,2482.2,3.39701]
[1751339464959,0.80549,2482.4,2482.3,0.80547]
[1751339465365,0.80549,2482.4,2482.3,2.07547]
[1751339465565,30.85986299,2482.5,2482.4,0.80547]
[1751339465864,30.85986299,2482.5,2482.4,2.07547]
[1751339466365,28.58226,2482.5,2482.4,2.07547]
[1751339466863,28.58226,2482.5,2482.4,0.80547]
[1751339467760,35.26426,2482.5,2482.4,0.80547]
[1751339467962,28.58226,2482.5,2482.4,2.07547]
[1751339468167,28.58226,2482.5,2482.4,0.80547]
[1751339468465,28.58226,2482.5,2482.4,2.07547]
[1751339468665,0.8055,2482.4,2482.3,0.80548]
[1751339468967,0.8055,2482.4,2482.3,2.07548]
[1751339471763,4.01325,2482.5,2482.4,0.80547]
[1751339471957,4.01325,2482.5,2482.4,2.07547]
[1751339472163,28.56225,2482.5,2482.4,2.07547]
[1751339472763,28.56225,2482.5,2482.4,0.80547]
[1751339473164,28.56225,2482.5,2482.4,2.07547]
[1751339473666,28.56225,2482.5,2482.4,0.80547]
[1751339474366,28.56225,2482.5,2482.4,2.07547]
[1751339474571,3.2078,2482.5,2482.4,0.80547]
[1751339474771,28.55623,2482.5,2482.4,2.07547]
[1751339475072,27.7508,2482.5,2482.4,2.07547]
[1751339475568,28.55623,2482.5,2482.4,2.07547]
[1751339476870,28.55623,2482.5,2482.4,0.80547]
[1751339477170,25.34843,2482.5,2482.4,0.80547]
[1751339477366,25.34843,2482.5,2482.4,2.07547]
[1751339478264,24.543,2482.5,2482.4,2.07547]
[1751339478872,25.34843,2482.5,2482.4,2.07547]
[1751339479572,0.80543,2482.5,2482.4,2.07547]
[1751339479762,25.33543,2482.5,2482.4,2.07547]
[1751339479969,0.8055,2482.3,2482.2,2.12701]
[1751339480268,0.8055,2482.3,2482.2,1.3215]
[1751339481468,0.8055,2482.3,2482.2,0.6653]
[1751339482976,0.8055,2482.3,2482.2,1.47083]
[1751339483177,0.8055,2482.3,2482.2,0.6653]
[1751339484172,0.8055,2482.3,2482.2,1.9353]
[1751339486080,0.8055,2482.3,2482.2,0.6653]
[1751339486679,0.8055,2482.3,2482.2,1.9353]
[1751339486880,0.8055,2482.3,2482.2,0.6653]
[1751339487181,0.8055,2482.3,2482.2,1.9353]
[1751339487478,0.8055,2482.3,2482.2,0.6653]
[1751339487677,0.8055,2482.3,2482.2,1.9353]
[1751339487975,0.8055,2482.3,2482.2,0.6653]
[1751339488181,0.80566,2481.8,2481.7,1.19987782]
[1751339488380,25.31966,2481.8,2481.7,2.46987782]
[1751339489080,25.31966,2481.8,2481.7,1.27]
[1751339490878,26.73266,2481.8,2481.7,1.27]
[1751339491682,0.80579,2481.4,2481.3,3.2078]
[1751339491883,25.32779,2481.4,2481.3,3.9978]
[1751339492074,25.32779,2481.4,2481.3,4.80362]
[1751339492479,3.2078,2481.8,2481.3,6.27540299]
[1751339492679,3.2078,2481.8,2481.7,3.08329299]
[1751339492883,3.2078,2481.8,2481.7,4.35329299]
[1751339493083,27.7398,2481.8,2481.7,4.35329299]
[1751339493278,28.54546,2481.8,2481.7,2.07569]
[1751339493479,27.7398,2481.8,2481.7,0.07]
[1751339493681,25.33766,2481.8,2481.7,0.07]
[1751339493987,25.33766,2481.8,2481.7,0.87569]
[1751339494880,0.6871,2482.0,2481.7,2.34760299]
[1751339495084,3.2078,2482.1,2482.0,0.8056]
[1751339495386,30.02340299,2482.1,2481.8,0.6716]
[1751339495582,0.80566,2481.8,2481.7,0.80567]
[1751339495783,25.34666,2481.8,2481.7,0.81567]
[1751339496287,24.541,2481.8,2481.7,0.81567]
[1751339496479,25.34666,2481.8,2481.7,0.81567]
[1751339496987,25.34666,2481.8,2481.7,0.80567]
[1751339497389,25.34666,2481.8,2481.7,2.07567]
[1751339498879,24.541,2481.8,2481.7,2.07567]
[1751339499188,25.34666,2481.8,2481.7,2.07567]
[1751339499986,24.541,2481.8,2481.7,2.07567]
[1751339500692,24.541,2481.8,2481.7,4.35327299]
[1751339501192,25.34666,2481.8,2481.7,0.80567]
[1751339501385,25.34666,2481.8,2481.7,2.07567]
[1751339501592,0.80573,2481.6,2481.5,2.16616]
[1751339501794,0.80573,2481.6,2481.5,2.24616]
[1751339502196,0.80573,2481.6,2481.5,2.16616]
[1751339502594,0.80573,2481.6,2481.5,3.43616]
[1751339502893,0.80573,2481.6,2481.5,2.16616]
[1751339503095,0.80573,2481.6,2481.5,3.43616]
[1751339503396,24.531,2481.6,2481.5,5.71376299]
[1751339503596,25.33673,2481.6,2481.5,5.71376299]
[1751339503796,24.531,2481.6,2481.5,3.43616]
[1751339503996,25.33673,2481.6,2481.5,3.43616]
[1751339504994,2.22565,2481.9,2481.5,4.90800299]
[1751339505199,24.528,2481.8,2481.7,3.08329299]
[1751339505394,25.33366,2481.8,2481.7,4.35329299]
[1751339505695,0.80565,2481.9,2481.7,4.35329299]
[1751339506001,3.18760056,2482.5,2481.7,3.54760299]
[1751339506190,0.80543,2482.5,2482.4,2.27760299]
[1751339506511,0.80543,2482.5,2482.4,4.35307299]
[1751339506694,0.80543,2482.5,2482.4,2.07547]
[1751339506995,0.80543,2482.5,2482.4,1.27]
[1751339507195,27.49623,2482.5,2482.4,1.27]
[1751339507798,0.80547,2482.4,2482.3,0.80549]
[1751339507996,0.80547,2482.4,2482.3,2.07549]
[1751339508396,25.42047,2482.4,2482.3,2.07549]
[1751339508599,0.8055,2482.3,2482.2,2.19621]
[1751339508795,0.8055,2482.3,2482.2,3.46621]
[1751339508992,0.80549,2482.4,2482.3,0.8055]
[1751339509201,0.8055,2482.3,2482.2,2.19622]
[1751339509400,0.8055,2482.3,2482.2,3.46622]
[1751339509895,24.613,2482.4,2482.2,2.6607]
[1751339510201,25.41849,2482.4,2482.3,0.8055]
[1751339510400,25.41849,2482.4,2482.3,2.0755]
[1751339510804,24.613,2482.4,2482.3,2.0755]
[1751339511000,0.80546,2482.5,2482.4,0.80547]
[1751339511202,25.41546,2482.5,2482.4,2.07547]
[1751339511402,25.41546,2482.5,2482.4,0.80547]
[1751339511603,0.8055,2482.4,2482.3,0.80548]
[1751339511905,0.8055,2482.3,2482.2,2.1962]
[1751339512105,0.8055,2482.3,2482.2,3.4662]
[1751339512806,25.4045,2482.3,2482.2,3.4662]
[1751339513005,24.599,2482.3,2482.2,3.4662]
[1751339513201,25.4045,2482.3,2482.2,2.1962]
[1751339513507,25.4045,2482.3,2482.2,3.4662]
[1751339513804,0.80563,2481.9,2481.5,1.19987782]
[1751339514008,0.80569,2481.7,2481.6,0.6674]
[1751339514202,0.80569,2481.7,2481.6,1.9374]
[1751339514804,0.80569,2481.7,2481.6,2.74313]
[1751339515511,0.80573,2481.6,2481.5,3.2078]
[1751339515717,0.80573,2481.6,2481.5,4.4778]
[1751339517006,0.80573,2481.6,2481.5,1.27]
[1751339518501,2.27760299,2481.7,2481.4,0.6717]
[1751339518502,0.80576,2481.5,2481.4,0.6717]
[1751339518702,0.80582,2481.3,2481.2,0.21740978]
[1751339518907,6.29122299,2481.3,2481.2,0.21740978]
[1751339519106,6.29122299,2481.3,2481.2,9.78e-06]
[1751339519107,22.72322299,2481.3,2481.2,9.78e-06]
[1751339519310,2.01489,2480.9,2480.3,1.19987782]
[1751339519613,0.80604,2480.7,2480.5,3.08366299]
[1751339519803,0.80601,2480.8,2480.6,0.80605]
[1751339520003,24.671,2480.8,2480.7,3.08362299]
[1751339520203,24.671,2480.8,2480.7,5.01312299]
[1751339520402,0.80594,2481.0,2480.7,4.20710299]
[1751339520605,0.80591,2481.1,2480.9,3.08353299]
[1751339520808,4.01368,2481.2,2481.0,0.80592]
[1751339521007,4.01368,2481.2,2481.0,2.07592]
[1751339521209,28.69468,2481.2,2481.1,2.95360299]
[1751339521403,28.69468,2481.2,2481.1,4.22360299]
[1751339521606,28.69468,2481.2,2481.1,1.946]
[1751339522813,28.69468,2481.2,2481.1,2.75189]
[1751339523002,28.69468,2481.2,2481.1,1.946]
[1751339524013,3.2078,2481.2,2481.1,5.02949299]
[1751339524313,58.038,2481.6,2481.1,5.02949299]
[1751339524314,24.671,2481.3,2481.2,0.80586]
[1751339524613,0.8058,2481.4,2481.3,0.80582]
[1751339524614,24.674,2481.4,2481.3,0.80582]
[1751339524812,24.674,2481.4,2481.3,5.04022299]
[1751339525011,4.01357,2481.5,2481.4,0.80579]
[1751339525211,28.68757,2481.5,2481.4,1.27]
[1751339525414,28.68757,2481.5,2481.4,2.07579]
[1751339525608,28.68757,2481.5,2481.4,1.27]
[1751339525804,4.01357,2481.5,2481.4,1.27]
[1751339526011,4.01357,2481.5,2481.4,2.07579]
[1751339526410,3.2078,2481.5,2481.4,3.39559]
[1751339526606,0.7075,2481.8,2481.4,2.5898]
[1751339526607,3.2078,2481.8,2481.4,2.5898]
[1751339526808,0.80573,2481.6,2481.5,2.93520299]
[1751339527011,0.80571,2481.7,2481.6,0.80572]
[1751339527314,0.80571,2481.7,2481.6,2.07572]
[1751339528208,0.80573,2481.6,2481.5,1.46334]
[1751339528409,0.80573,2481.6,2481.5,2.73334]
[1751339530405,3.2078,2481.8,2481.5,1.9276]
[1751339530708,0.80565,2481.9,2481.8,0.80566]
[1751339531014,0.80565,2481.9,2481.8,2.07566]
[1751339531409,0.80565,2481.9,2481.8,2.72476]
[1751339531810,0.80558,2482.1,2482.0,0.80556]
[1751339532012,0.80558,2482.1,2482.0,2.07556]
[1751339532210,3.2078,2482.2,2482.1,0.80556]
[1751339532515,3.2078,2482.2,2482.1,4.35316299]
[1751339533310,0.80552,2482.3,2482.2,0.80553]
[1751339533512,0.80552,2482.3,2482.2,1.68257512]
[1751339533712,0.80555,2482.2,2482.1,0.80553]
[1751339533919,0.80555,2482.2,2482.1,2.07553]
[1751339534113,0.80553,2482.3,2482.2,0.80551]
[1751339534513,0.80548,2482.4,2482.3,0.80547]
[1751339534715,0.80548,2482.4,2482.3,2.74167]
[1751339536820,24.682,2482.5,2482.3,1.9362]
[1751339537021,0.80547,2482.4,2482.3,2.74169]
[1751339537615,0.80545,2482.5,2482.4,0.80544]
[1751339537817,0.80545,2482.5,2482.4,2.07544]
[1751339540124,4.01323,2482.6,2482.5,0.80543]
[1751339540318,0.80546,2482.5,2482.4,0.80544]
[1751339540514,0.80546,2482.5,2482.4,2.07544]
[1751339541321,0.80547,2482.4,2482.3,1.47167]
[1751339541521,2.27760299,2482.4,2481.8,15.72275299]
[1751339541722,0.80557,2482.2,2482.1,0.80555]
[1751339542027,0.80557,2482.2,2482.1,2.07555]
[1751339542825,1.3489,2482.5,2482.1,1.27]
[1751339543024,0.80553,2482.3,2482.2,0.80551]
[1751339543329,0.80553,2482.3,2482.2,2.07551]
[1751339543828,0.80553,2482.3,2482.2,1.27]
[1751339544031,0.80553,2482.2,2482.1,0.80555]
[1751339544229,0.80553,2482.2,2482.1,2.07555]
[1751339545230,0.80562,2482.0,2481.9,0.8056]
[1751339545426,0.80562,2482.0,2481.9,2.0556]
[1751339545827,0.80562,2482.0,2481.9,0.8056]
[1751339546022,1.3977,2482.3,2481.9,3.28405]
[1751339546229,0.80558,2482.2,2482.1,0.80554]
[1751339546527,0.80558,2482.2,2482.1,1.27]
[1751339546930,0.80555,2482.2,2482.1,2.07553]
[1751339548027,0.8055,2482.4,2482.3,0.8055]
[1751339548222,0.8055,2482.4,2482.3,2.0755]
[1751339550725,3.2078,2482.6,2482.5,0.80543]
[1751339550928,3.2078,2482.6,2482.5,4.35303299]
[1751339551233,4.0132,2482.6,2482.5,4.35303299]
[1751339551431,3.2078,2482.6,2482.5,4.35303299]
[1751339552128,4.01309,2483.0,2482.9,0.8053]
[1751339552531,4.01309,2483.0,2482.9,2.0753]
[1751339552729,0.8053,2482.9,2482.8,0.80531]
[1751339552932,0.8053,2482.9,2482.8,2.07531]
[1751339553629,4.01309,2483.0,2482.9,0.8053]
[1751339554033,4.01309,2483.0,2482.9,2.0753]
[1751339554731,3.2078,2483.0,2482.9,2.0753]
[1751339555129,3.2078,2483.0,2482.9,4.35290299]
[1751339555531,3.2078,2483.0,2482.9,5.74610299]
[1751339555532,4.01307,2483.0,2482.9,5.74610299]
[1751339556239,0.80527,2483.0,2482.9,5.74610299]
[1751339557036,0.80526,2483.1,2483.0,0.80524]
[1751339557237,0.80526,2483.1,2483.0,5.01324299]